fUSD/lending_fUSD_20260610
["ID","MTS","AMOUNT","RATE_DAILY","PERIOD"]
[424724243,1781089845000,-305.1058055,0.000299,2]
[424724244,1781089845000,-305.10580536,0.000299,2]
[424724253,1781089845000,-305.10580536,0.000299,2]
[424724241,1781089845000,-647.0,0.00029807,4]
[424724215,1781089845000,-535.70620684,0.00029633,2]
[424724208,1781089845000,-154.30688643,0.00029629,2]
[424724242,1781089845000,-613.8,0.00029826,7]
[424724228,1781089845000,-185.2604125,0.00029633,2]
[424724217,1781089845000,-240.36811096,0.00029633,2]
[424724219,1781089845000,-233.97498709,0.00029633,2]
[424724225,1781089845000,-171.3763261,0.00029633,2]
[424724220,1781089845000,-548.67416014,0.00029633,2]
[424724226,1781089845000,-559.35254808,0.00029633,2]
[424724222,1781089845000,-607.35089931,0.00029633,2]
[424724224,1781089845000,-497.02519603,0.00029633,2]
[424724223,1781089845000,-479.55270173,0.00029633,2]
[424724221,1781089845000,-241.43704184,0.00029633,2]
[424724218,1781089845000,-472.84272371,0.00029633,2]
[424724229,1781089845000,-286.75068551,0.00029633,2]
[424724227,1781089845000,-239.26414617,0.00029633,2]
[424724240,1781089845000,-815.59121386,0.00029664,2]
[424724234,1781089845000,-514.68514451,0.00029664,2]
[424724236,1781089845000,-727.5141224,0.00029664,2]
[424724239,1781089845000,-542.46559626,0.00029664,2]
[424724237,1781089845000,-546.30712301,0.00029664,2]
[424724235,1781089845000,-630.04553246,0.00029664,2]
[424724232,1781089845000,-169.58866854,0.00029633,2]
[424724233,1781089845000,-454.45468949,0.00029664,2]
[424724230,1781089845000,-275.66086007,0.00029633,2]
[424724231,1781089845000,-164.10870769,0.00029633,2]
[424724238,1781089845000,-823.11269627,0.00029664,2]
[424724276,1781089846000,-574.89,0.00030137,5]
[424724294,1781089846000,-389.02461309,0.00030172,2]
[424724292,1781089846000,-476.09308045,0.00030172,2]
[424724297,1781089846000,-705.95254744,0.00030172,2]
[424724290,1781089846000,-506.09977629,0.00030172,2]
[424724295,1781089846000,-482.5267518,0.00030172,2]
[424724289,1781089846000,-586.45652962,0.00030172,2]
[424724279,1781089846000,-500.0,0.00030137,3]
[424724281,1781089846000,-160.47,0.00030137,2]
[424724282,1781089846000,-202.04,0.00030137,2]
[424724287,1781089846000,-276.9077719,0.00030172,2]
[424724285,1781089846000,-224.46304643,0.00030172,2]
[424724278,1781089846000,-157.69923417,0.00030137,2]
[424724286,1781089846000,-411.17925677,0.00030172,2]
[424724280,1781089846000,-160.47,0.00030137,2]
[424724288,1781089846000,-612.57176835,0.00030172,2]
[424724284,1781089846000,-461.34209463,0.00030172,2]
[424724274,1781089846000,-247.2095207,0.00030137,2]
[424724270,1781089846000,-404.0,0.00030037,2]
[424724271,1781089846000,-200.0,0.00030089,2]
[424724272,1781089846000,-170.09,0.00030137,2]
[424724303,1781089846000,-3000.0,0.00030195,30]
[424724283,1781089846000,-215.33478999,0.00030137,2]
[424724302,1781089846000,-3000.0,0.00030195,30]
[424724308,1781089846000,-611.0,0.00030195,30]
[424724300,1781089846000,-576.96732758,0.00030172,2]
[424724299,1781089846000,-614.53742761,0.00030172,2]
[424724327,1781089846000,-315.98830037,0.00030205,2]
[424724329,1781089846000,-233.51984573,0.00030205,2]
[424724318,1781089846000,-266.0,0.00030195,30]
[424724322,1781089846000,-264.93580823,0.00030205,2]
[424724320,1781089846000,-735.0,0.00030195,30]
[424724325,1781089846000,-701.25339829,0.00030205,2]
[424724321,1781089846000,-518.99769508,0.00030205,2]
[424724319,1781089846000,-220.0,0.00030195,30]
[424724317,1781089846000,-248.0,0.00030195,30]
[424724315,1781089846000,-150.0,0.00030195,30]
[424724328,1781089846000,-214.4419437,0.00030205,2]
[424724313,1781089846000,-204.0,0.00030195,30]
[424724314,1781089846000,-1032.0,0.00030195,30]
[424724305,1781089846000,-3000.0,0.00030195,30]
[424724306,1781089846000,-1692.0,0.00030195,30]
[424724309,1781089846000,-150.0,0.00030195,30]
[424724307,1781089846000,-850.0,0.00030195,30]
[424724310,1781089846000,-150.0,0.00030195,30]
[424724312,1781089846000,-150.0,0.00030195,30]
[424724316,1781089846000,-288.0,0.00030195,30]
[424724311,1781089846000,-150.0,0.00030195,30]
[424724301,1781089846000,-517.27249335,0.00030172,2]
[424724465,1781089847000,-887.95818953,0.00030782,2]
[424724461,1781089847000,-211.0,0.00030573,7]
[424724469,1781089847000,-821.14695513,0.00030786,2]
[424724467,1781089847000,-837.10996932,0.00030782,2]
[424724453,1781089847000,-450.0,0.00030573,7]
[424724457,1781089847000,-376.0,0.00030573,7]
[424724455,1781089847000,-450.0,0.00030573,7]
[424724459,1781089847000,-995.0,0.00030573,7]
[424724504,1781089847000,-1012.25149886,0.00030786,2]
[424724499,1781089847000,-892.84367807,0.00030786,2]
[424724502,1781089847000,-914.45693356,0.00030786,2]
[424724506,1781089847000,-960.46911471,0.00030786,2]
[424724508,1781089847000,-932.25424679,0.00030786,2]
[424724510,1781089847000,-757.42448249,0.00030818,2]
[424724515,1781089847000,-1212.52353734,0.00030818,2]
[424724513,1781089847000,-1050.07588743,0.00030818,2]
[424724463,1781089847000,-882.44068431,0.00030747,2]
[424724528,1781089847000,-150.0,0.00031011,2]
[424724497,1781089847000,-938.84173343,0.00030786,2]
[424724449,1781089847000,-450.0,0.00030573,7]
[424724427,1781089847000,-728.40949734,0.00030241,2]
[424724443,1781089847000,-450.0,0.00030573,7]
[424724531,1781089847000,-613.8,0.00031059,14]
[424724415,1781089847000,-333.64164255,0.00030241,2]
[424724411,1781089847000,-240.0,0.0003023,30]
[424724409,1781089847000,-515.0,0.0003023,30]
[424724413,1781089847000,-214.3,0.00030239,2]
[424724423,1781089847000,-840.06070994,0.00030241,2]
[424724425,1781089847000,-970.01882987,0.00030241,2]
[424724419,1781089847000,-481.58500183,0.00030241,2]
[424724421,1781089847000,-686.24685935,0.00030241,2]
[424724417,1781089847000,-605.93958599,0.00030241,2]
[424724431,1781089847000,-723.28746169,0.00030241,2]
[424724429,1781089847000,-1097.48359502,0.00030241,2]
[424724441,1781089847000,-450.0,0.00030573,7]
[424724433,1781089847000,-1087.45495182,0.00030241,2]
[424724439,1781089847000,-450.0,0.00030573,7]
[424724435,1781089847000,-647.0,0.00030341,5]
[424724437,1781089847000,-165.08,0.000305,7]
[424724445,1781089847000,-450.0,0.00030573,7]
[424724447,1781089847000,-450.0,0.00030573,7]
[424724451,1781089847000,-450.0,0.00030573,7]
[424724533,1781089847000,-585.49,0.00031096,5]
[424724579,1781089847000,-1065.54982744,0.00031646,2]
[424724523,1781089847000,-10000.0,0.00030996,2]
[424724581,1781089847000,-230.99366579,0.0003165,2]
[424724571,1781089847000,-279.0449877,0.00031277,2]
[424724578,1781089847000,-1058.92882117,0.00031611,2]
[424724582,1781089847000,-985.37634616,0.0003165,2]
[424724584,1781089847000,-1071.41241369,0.0003165,2]
[424724585,1781089847000,-1097.34832027,0.0003165,2]
[424724588,1781089847000,-225.8,0.00031676,14]
[424724587,1781089847000,-1118.70509615,0.0003165,2]
[424724592,1781089847000,-1631.18242773,0.00031683,2]
[424724583,1781089847000,-1126.61008012,0.0003165,2]
[424724589,1781089847000,-1260.09106491,0.00031683,2]
[424724590,1781089847000,-1455.0282448,0.00031683,2]
[424724591,1781089847000,-1646.22539254,0.00031683,2]
[424724593,1781089847000,-300.0,0.00031689,10]
[424724596,1781089847000,-3000.0,0.0003169,30]
[424724595,1781089847000,-3000.0,0.0003169,30]
[424724594,1781089847000,-313.04371724,0.00031689,10]
[424724597,1781089847000,-3000.0,0.0003169,30]
[424724536,1781089847000,-248.0,0.00031195,30]
[424724575,1781089847000,-1818.757,0.00031537,29]
[424724567,1781089847000,-515.0,0.0003123,30]
[424724586,1781089847000,-1152.56293766,0.0003165,2]
[424724573,1781089847000,-184.288,0.00031537,29]
[424724517,1781089847000,-1371.85449378,0.00030818,2]
[424724577,1781089847000,-150.315926,0.00031593,2]
[424724526,1781089847000,-284.95203121,0.00031,30]
[424724540,1781089847000,-220.0,0.00031195,30]
[424724538,1781089847000,-266.0,0.00031195,30]
[424724521,1781089847000,-647.0,0.00030875,6]
[424724543,1781089847000,-735.0,0.00031195,30]
[424724547,1781089847000,-811.0,0.0003123,30]
[424724545,1781089847000,-1000.0,0.000312,7]
[424724550,1781089847000,-256.0,0.0003123,30]
[424724519,1781089847000,-1359.31868977,0.00030818,2]
[424724562,1781089847000,-731.0,0.0003123,30]
[424724552,1781089847000,-189.0,0.0003123,30]
[424724554,1781089847000,-702.0,0.0003123,30]
[424724557,1781089847000,-250.0,0.0003123,30]
[424724559,1781089847000,-218.0,0.0003123,30]
[424724564,1781089847000,-293.0,0.0003123,30]
[424724569,1781089847000,-240.0,0.0003123,30]
[424724572,1781089847000,-647.0,0.00031409,6]
[424724580,1781089847000,-1004.53196319,0.00031646,2]
[424724637,1781089848000,-554.38761025,0.00032,120]
[424724635,1781089848000,-1927.04398288,0.00032,120]
[424724631,1781089848000,-222.59931958,0.00032,120]
[424724634,1781089848000,-260.4097324,0.00032,120]
[424724632,1781089848000,-611.5581255,0.00032,120]
[424724629,1781089848000,-1686.67346128,0.00032,120]
[424724627,1781089848000,-455.70489109,0.00032,120]
[424724626,1781089848000,-211.50314132,0.00032,120]
[424724630,1781089848000,-352.89148725,0.00032,120]
[424724644,1781089848000,-649.0,0.00032,120]
[424724633,1781089848000,-194.94433173,0.00032,120]
[424724639,1781089848000,-364.64302595,0.00032,120]
[424724648,1781089848000,-650.0,0.00032,30]
[424724642,1781089848000,-4535.0,0.00032,120]
[424724641,1781089848000,-220.65966076,0.00032,120]
[424724636,1781089848000,-1926.55997013,0.00032,120]
[424724645,1781089848000,-650.0,0.00032,30]
[424724640,1781089848000,-509.38588728,0.00032,120]
[424724643,1781089848000,-650.0,0.00032,120]
[424724647,1781089848000,-650.0,0.00032,30]
[424724649,1781089848000,-650.0,0.00032,30]
[424724652,1781089848000,-593.37,0.00032055,5]
[424724628,1781089848000,-215.66767282,0.00032,120]
[424724650,1781089848000,-700.0,0.00032,2]
[424724638,1781089848000,-222.27663922,0.00032,120]
[424724624,1781089848000,-225.31833327,0.00032,120]
[424724603,1781089848000,-3000.0,0.0003169,30]
[424724623,1781089848000,-534.50735788,0.00032,120]
[424724646,1781089848000,-650.0,0.00032,30]
[424724598,1781089848000,-2006.0,0.0003169,30]
[424724600,1781089848000,-841.0,0.0003169,30]
[424724602,1781089848000,-3000.0,0.0003169,30]
[424724601,1781089848000,-3000.0,0.0003169,30]
[424724599,1781089848000,-850.0,0.0003169,30]
[424724605,1781089848000,-3000.0,0.0003169,30]
[424724604,1781089848000,-3000.0,0.0003169,30]
[424724607,1781089848000,-165.08,0.000317,7]
[424724608,1781089848000,-150.0,0.00031858,7]
[424724606,1781089848000,-2705.0,0.0003169,30]
[424724625,1781089848000,-1720.69366673,0.00032,120]
[424724610,1781089848000,-150.0,0.00031858,7]
[424724609,1781089848000,-150.56153269,0.00031858,7]
[424724613,1781089848000,-151.65662725,0.00031858,7]
[424724615,1781089848000,-150.0,0.00031858,7]
[424724614,1781089848000,-150.0,0.00031858,7]
[424724617,1781089848000,-150.0,0.00031858,7]
[424724616,1781089848000,-150.0,0.00031858,7]
[424724621,1781089848000,-400.12790153,0.00032,120]
[424724622,1781089848000,-199.66604063,0.00032,120]
[424724620,1781089848000,-150.0,0.0003198,7]
[424724618,1781089848000,-150.0,0.00031858,7]
[424724619,1781089848000,-647.0,0.00031943,7]
[424724612,1781089848000,-150.0,0.00031858,7]
[424724653,1781089848000,-6075.0,0.00032086,2]
[424724611,1781089848000,-257.15629635,0.00031858,7]
[424724655,1781089848000,-150.0,0.00032102,7]
[424724691,1781089848000,-2360.95,0.00032559,18]
[424724681,1781089848000,-613.8,0.00032293,14]
[424724685,1781089848000,-1274.0,0.00032423,2]
[424724688,1781089848000,-150.0,0.00032447,7]
[424724687,1781089848000,-150.0,0.00032447,7]
[424724684,1781089848000,-382.0,0.00032423,2]
[424724692,1781089848000,-150.0,0.00032562,2]
[424724689,1781089848000,-150.0,0.00032468,7]
[424724686,1781089848000,-1227.0,0.00032423,2]
[424724694,1781089848000,-150.0,0.0003259,7]
[424724696,1781089848000,-280.38,0.00032691,2]
[424724683,1781089848000,-1358.0,0.00032423,2]
[424724693,1781089848000,-150.0,0.00032565,7]
[424724695,1781089848000,-150.0,0.00032644,7]
[424724697,1781089848000,-150.0,0.00032712,7]
[424724699,1781089848000,-606.36606351,0.00032877,2]
[424724701,1781089848000,-264.0,0.00032877,120]
[424724703,1781089848000,-1235.41695803,0.00032907,2]
[424724698,1781089848000,-150.0,0.00032834,7]
[424724702,1781089848000,-270.746014,0.00032877,120]
[424724700,1781089848000,-170.09,0.00032877,2]
[424724704,1781089848000,-1243.14146534,0.00032943,2]
[424724706,1781089848000,-212.19678613,0.00032947,2]
[424724705,1781089848000,-1171.95395705,0.00032943,2]
[424724707,1781089848000,-178.59056286,0.00032947,2]
[424724690,1781089848000,-647.0,0.00032477,7]
[424724654,1781089848000,-933.0,0.00032086,2]
[424724674,1781089848000,-50000.0,0.00032232,120]
[424724656,1781089848000,-248.0,0.00032195,30]
[424724651,1781089848000,-628.0,0.00032,30]
[424724657,1781089848000,-266.0,0.00032195,30]
[424724664,1781089848000,-189.0,0.0003223,30]
[424724666,1781089848000,-250.0,0.0003223,30]
[424724662,1781089848000,-811.0,0.0003223,30]
[424724658,1781089848000,-220.0,0.00032195,30]
[424724682,1781089848000,-150.0,0.00032346,7]
[424724659,1781089848000,-735.0,0.00032195,30]
[424724661,1781089848000,-150.0,0.00032224,7]
[424724667,1781089848000,-218.0,0.0003223,30]
[424724665,1781089848000,-702.0,0.0003223,30]
[424724660,1781089848000,-214.3,0.0003221,5]
[424724663,1781089848000,-256.0,0.0003223,30]
[424724668,1781089848000,-731.0,0.0003223,30]
[424724679,1781089848000,-461.388138,0.00032232,7]
[424724675,1781089848000,-50000.0,0.00032232,60]
[424724678,1781089848000,-461.388138,0.00032232,7]
[424724677,1781089848000,-50000.0,0.00032232,90]
[424724676,1781089848000,-50000.0,0.00032232,30]
[424724669,1781089848000,-293.0,0.0003223,30]
[424724673,1781089848000,-300.0,0.00032231,10]
[424724671,1781089848000,-240.0,0.0003223,30]
[424724680,1781089848000,-150.0,0.00032251,7]
[424724670,1781089848000,-515.0,0.0003223,30]
[424724672,1781089848000,-300.0,0.00032231,10]
[424724747,1781089849000,-150.0,0.00033078,7]
[424724741,1781089849000,-284.95203121,0.00033,30]
[424724748,1781089849000,-3440.11,0.0003309,5]
[424724743,1781089849000,-678.63,0.00033014,5]
[424724742,1781089849000,-647.0,0.00033011,8]
[424724749,1781089849000,-165.08,0.000331,30]
[424724738,1781089849000,-509.38588728,0.00033,120]
[424724734,1781089849000,-1926.55997013,0.00033,120]
[424724730,1781089849000,-611.5581255,0.00033,120]
[424724744,1781089849000,-150.0,0.00033037,7]
[424724750,1781089849000,-807.88724,0.00033177,120]
[424724758,1781089849000,-189.0,0.0003323,30]
[424724745,1781089849000,-150.0,0.00033037,7]
[424724746,1781089849000,-150.0,0.00033037,7]
[424724751,1781089849000,-248.0,0.00033195,30]
[424724752,1781089849000,-266.0,0.00033195,30]
[424724753,1781089849000,-220.0,0.00033195,30]
[424724755,1781089849000,-150.0,0.000332,7]
[424724757,1781089849000,-256.0,0.0003323,30]
[424724756,1781089849000,-811.0,0.0003323,30]
[424724754,1781089849000,-735.0,0.00033195,30]
[424724759,1781089849000,-702.0,0.0003323,30]
[424724761,1781089849000,-218.0,0.0003323,30]
[424724739,1781089849000,-220.65966076,0.00033,120]
[424724740,1781089849000,-284.95203121,0.00033,7]
[424724732,1781089849000,-260.4097324,0.00033,120]
[424724721,1781089849000,-534.50735788,0.00033,120]
[424724737,1781089849000,-364.64302595,0.00033,120]
[424724760,1781089849000,-250.0,0.0003323,30]
[424724708,1781089849000,-1149.60573719,0.00032947,2]
[424724715,1781089849000,-1697.53295227,0.00032981,2]
[424724709,1781089849000,-1314.37842681,0.00032947,2]
[424724711,1781089849000,-1280.23970698,0.00032947,2]
[424724712,1781089849000,-1305.15594551,0.00032947,2]
[424724713,1781089849000,-150.0,0.00032956,7]
[424724710,1781089849000,-1249.9811493,0.00032947,2]
[424724714,1781089849000,-1470.1062424,0.00032981,2]
[424724717,1781089849000,-1903.04616568,0.00032981,2]
[424724722,1781089849000,-225.31833327,0.00033,120]
[424724716,1781089849000,-1920.59629129,0.00032981,2]
[424724718,1781089849000,-1231.40054223,0.00032981,2]
[424724720,1781089849000,-199.66604063,0.00033,120]
[424724719,1781089849000,-400.12790153,0.00033,120]
[424724725,1781089849000,-455.70489109,0.00033,120]
[424724724,1781089849000,-211.50314132,0.00033,120]
[424724723,1781089849000,-1720.69366673,0.00033,120]
[424724726,1781089849000,-215.66767282,0.00033,120]
[424724727,1781089849000,-1686.67346128,0.00033,120]
[424724728,1781089849000,-352.89148725,0.00033,120]
[424724729,1781089849000,-222.59931958,0.00033,120]
[424724733,1781089849000,-1927.04398288,0.00033,120]
[424724731,1781089849000,-194.94433173,0.00033,120]
[424724736,1781089849000,-222.27663922,0.00033,120]
[424724735,1781089849000,-554.38761025,0.00033,120]
[424724763,1781089849000,-293.0,0.0003323,30]
[424724773,1781089849000,-675.686419,0.00033477,120]
[424724805,1781089849000,-150.0,0.0003381,7]
[424724795,1781089849000,-500.0,0.00033699,60]
[424724793,1781089849000,-500.0,0.00033699,60]
[424724796,1781089849000,-500.0,0.00033699,60]
[424724799,1781089849000,-500.0,0.00033699,60]
[424724800,1781089849000,-500.0,0.00033699,60]
[424724798,1781089849000,-500.0,0.00033699,60]
[424724801,1781089849000,-466.92775594,0.00033699,60]
[424724802,1781089849000,-150.0,0.00033699,2]
[424724804,1781089849000,-668.899648,0.00033777,120]
[424724803,1781089849000,-150.337084,0.00033708,2]
[424724806,1781089849000,-150.0,0.00033824,7]
[424724807,1781089849000,-159.81713433,0.0003385,120]
[424724808,1781089849000,-238.10730352,0.0003385,120]
[424724809,1781089849000,-154.76974729,0.0003385,120]
[424724811,1781089849000,-6182.8663269,0.00033861,2]
[424724814,1781089849000,-534.50735788,0.000339,120]
[424724817,1781089849000,-211.50314132,0.000339,120]
[424724810,1781089849000,-275.10992999,0.0003385,120]
[424724812,1781089849000,-400.12790153,0.000339,120]
[424724815,1781089849000,-225.31833327,0.000339,120]
[424724813,1781089849000,-199.66604063,0.000339,120]
[424724816,1781089849000,-1720.69366673,0.000339,120]
[424724819,1781089849000,-215.66767282,0.000339,120]
[424724774,1781089849000,-287.8,0.00033525,7]
[424724818,1781089849000,-455.70489109,0.000339,120]
[424724794,1781089849000,-500.0,0.00033699,60]
[424724792,1781089849000,-500.0,0.00033699,60]
[424724797,1781089849000,-500.0,0.00033699,60]
[424724788,1781089849000,-150.0,0.00033699,60]
[424724762,1781089849000,-731.0,0.0003323,30]
[424724764,1781089849000,-515.0,0.0003323,30]
[424724765,1781089849000,-240.0,0.0003323,30]
[424724766,1781089849000,-350.0,0.0003325,3]
[424724768,1781089849000,-150.0,0.00033322,7]
[424724770,1781089849000,-150.0,0.00033431,7]
[424724772,1781089849000,-150.0,0.00033444,7]
[424724769,1781089849000,-2324.0,0.000334,11]
[424724791,1781089849000,-170.62503908,0.00033699,60]
[424724771,1781089849000,-228.49827994,0.00033432,2]
[424724775,1781089849000,-613.8,0.00033526,14]
[424724778,1781089849000,-150.0,0.00033566,7]
[424724777,1781089849000,-350.0,0.00033565,3]
[424724767,1781089849000,-150.0,0.00033273,7]
[424724779,1781089849000,-150.0,0.00033627,7]
[424724790,1781089849000,-218.83171562,0.00033699,60]
[424724776,1781089849000,-647.0,0.00033545,9]
[424724786,1781089849000,-168.48877466,0.00033699,60]
[424724787,1781089849000,-150.0,0.00033699,60]
[424724785,1781089849000,-150.0,0.00033699,60]
[424724789,1781089849000,-150.0,0.00033699,60]
[424724781,1781089849000,-150.0,0.00033627,7]
[424724783,1781089849000,-150.0,0.00033699,60]
[424724784,1781089849000,-150.0,0.00033699,60]
[424724782,1781089849000,-150.0,0.00033688,7]
[424724780,1781089849000,-150.0,0.00033627,7]
[424724861,1781089850000,-218.0,0.0003423,30]
[424724858,1781089850000,-189.0,0.0003423,30]
[424724859,1781089850000,-702.0,0.0003423,30]
[424724862,1781089850000,-731.0,0.0003423,30]
[424724855,1781089850000,-150.0,0.00034217,7]
[424724854,1781089850000,-150.0,0.00034217,7]
[424724863,1781089850000,-293.0,0.0003423,30]
[424724851,1781089850000,-220.0,0.00034195,30]
[424724845,1781089850000,-214.3,0.00034182,7]
[424724852,1781089850000,-735.0,0.00034195,30]
[424724853,1781089850000,-150.0,0.00034217,7]
[424724860,1781089850000,-250.0,0.0003423,30]
[424724874,1781089850000,-150.0,0.00034299,7]
[424724857,1781089850000,-256.0,0.0003423,30]
[424724865,1781089850000,-240.0,0.0003423,30]
[424724864,1781089850000,-515.0,0.0003423,30]
[424724867,1781089850000,-151.0,0.00034276,2]
[424724866,1781089850000,-212.88,0.00034266,120]
[424724870,1781089850000,-151.0,0.00034289,2]
[424724868,1781089850000,-575.38,0.00034276,2]
[424724869,1781089850000,-573.19,0.00034276,2]
[424724872,1781089850000,-151.93,0.0003429,2]
[424724873,1781089850000,-151.0,0.0003429,2]
[424724871,1781089850000,-151.0,0.00034289,2]
[424724847,1781089850000,-150.0,0.0003419,2]
[424724856,1781089850000,-811.0,0.0003423,30]
[424724848,1781089850000,-350.0,0.00034195,8]
[424724820,1781089850000,-1686.67346128,0.000339,120]
[424724842,1781089850000,-647.0,0.00034079,9]
[424724821,1781089850000,-352.89148725,0.000339,120]
[424724822,1781089850000,-222.59931958,0.000339,120]
[424724823,1781089850000,-611.5581255,0.000339,120]
[424724824,1781089850000,-194.94433173,0.000339,120]
[424724825,1781089850000,-260.4097324,0.000339,120]
[424724827,1781089850000,-1926.55997013,0.000339,120]
[424724826,1781089850000,-1927.04398288,0.000339,120]
[424724839,1781089850000,-750.0,0.00034,2]
[424724828,1781089850000,-554.38761025,0.000339,120]
[424724833,1781089850000,-150.0,0.00033933,7]
[424724835,1781089850000,-291.25,0.00033973,5]
[424724829,1781089850000,-222.27663922,0.000339,120]
[424724830,1781089850000,-364.64302595,0.000339,120]
[424724832,1781089850000,-220.65966076,0.000339,120]
[424724831,1781089850000,-509.38588728,0.000339,120]
[424724834,1781089850000,-225.8,0.00033937,14]
[424724837,1781089850000,-2270.0,0.00034,2]
[424724836,1781089850000,-150.0,0.00033981,7]
[424724838,1781089850000,-2293.0,0.00034,2]
[424724841,1781089850000,-650.300987,0.00034078,120]
[424724850,1781089850000,-266.0,0.00034195,30]
[424724849,1781089850000,-248.0,0.00034195,30]
[424724840,1781089850000,-150.0,0.00034055,7]
[424724844,1781089850000,-150.0,0.00034177,7]
[424724843,1781089850000,-165.08,0.000341,30]
[424724846,1781089850000,-186.24909246,0.00034186,2]
[424724875,1781089850000,-187.92,0.000343,13]
[424724931,1781089850000,-500.0,0.00034878,30]
[424724880,1781089850000,-150.0,0.00034421,7]
[424724905,1781089850000,-160.00074875,0.0003471,30]
[424724903,1781089850000,-160.00074875,0.0003471,37]
[424724909,1781089850000,-500.0,0.00034785,58]
[424724910,1781089850000,-160.00074875,0.00034785,58]
[424724920,1781089850000,-25000.0,0.00034845,10]
[424724912,1781089850000,-1500.0,0.00034795,2]
[424724911,1781089850000,-150.0,0.00034787,7]
[424724913,1781089850000,-155.03797306,0.00034795,30]
[424724914,1781089850000,-313.6731187,0.000348,120]
[424724917,1781089850000,-150.0,0.00034807,7]
[424724918,1781089850000,-350.0,0.00034822,37]
[424724915,1781089850000,-11120.46455918,0.000348,2]
[424724919,1781089850000,-25000.0,0.00034837,10]
[424724922,1781089850000,-25209.4589523,0.00034854,7]
[424724923,1781089850000,-25000.0,0.00034854,10]
[424724921,1781089850000,-1001.0,0.00034849,120]
[424724927,1781089850000,-5104.40312371,0.00034863,10]
[424724924,1781089850000,-300.0,0.00034862,10]
[424724925,1781089850000,-25000.0,0.00034863,10]
[424724926,1781089850000,-25000.0,0.00034863,10]
[424724928,1781089850000,-212.88,0.00034868,120]
[424724929,1781089850000,-500.0,0.00034869,30]
[424724930,1781089850000,-160.00074875,0.00034869,30]
[424724932,1781089850000,-160.00074875,0.00034878,30]
[424724876,1781089850000,-500.0,0.00034309,53]
[424724906,1781089850000,-613.8,0.0003476,30]
[424724908,1781089850000,-5800.0,0.00034783,2]
[424724916,1781089850000,-150.0,0.00034807,7]
[424724902,1781089850000,-500.0,0.0003471,37]
[424724904,1781089850000,-500.0,0.0003471,30]
[424724877,1781089850000,-295.74,0.00034329,7]
[424724882,1781089850000,-155.03797306,0.00034493,30]
[424724879,1781089850000,-663.017779,0.00034378,120]
[424724884,1781089850000,-150.0,0.00034543,7]
[424724885,1781089850000,-162.27,0.0003459,30]
[424724881,1781089850000,-310.22406629,0.00034452,14]
[424724883,1781089850000,-515.39,0.00034513,2]
[424724886,1781089850000,-150.0,0.00034611,7]
[424724888,1781089850000,-300.0,0.00034627,2]
[424724887,1781089850000,-647.0,0.00034613,10]
[424724891,1781089850000,-381.800414,0.0003463,60]
[424724889,1781089850000,-343.06765314,0.00034627,2]
[424724878,1781089850000,-155.03797306,0.00034356,30]
[424724893,1781089850000,-155.03797306,0.00034658,30]
[424724890,1781089850000,-300.0,0.00034627,2]
[424724901,1781089850000,-500.0,0.00034699,31]
[424724899,1781089850000,-500.0,0.00034679,30]
[424724900,1781089850000,-150.0,0.00034689,7]
[424724898,1781089850000,-647.867818,0.00034678,120]
[424724907,1781089850000,-5800.0,0.00034783,2]
[424724892,1781089850000,-911.4870891,0.0003463,60]
[424724895,1781089850000,-150.0,0.00034665,7]